[Event "26th Troya Open 2018"]
[Site "Canakkale"]
[Date "2018.08.11"]
[Round "9.19"]
[White "Buyukbozkoyun, Baran"]
[Black "Ozkurt, Deniz"]
[Result "1/2-1/2"]
[ECO "B01"]
[WhiteElo "1582"]
[BlackElo "1635"]
[Annotator "NA"]
[PlyCount "128"]
[EventDate "2018.08.06"]
[EventType "swiss"]
[EventCountry "TUR"]
[SourceTitle "playchess.com"]
[Source "ChessBase"]
[SourceQuality "1"]
[TimeControl "5400+30"]

1. e4 {[%emt 0:00:30]} d5 {[%emt 0:00:30]} 2. exd5 {[%emt 0:00:30]} Qxd5 {[%emt 0:00:30]} 3. Nc3 {[%emt 0:00:30]} Qd6 {[%emt 0:00:30]} 4. d4 {[%emt 0:00:30]} Nf6 {[%emt 0:00:00]} 5. Nf3 {[%emt 0:00:30]} Bg4 {[%emt 0:00:00]} 6. Be2 {[%emt 0:02:30]} c6 {[%emt 0:00:30]} 7. O-O {[%emt 0:00:30]} Nbd7 {[%emt 0:00:30]} 8. Bg5 {[%emt 0:02:30]} e6 {[%emt 0:00:30]} 9. Qd2 {[%emt 0:00:30]} Qc7 {[%emt 0:00:00]} 10. Rad1 {[%emt 0:02:30]} Bd6 {[%emt 0:01:00]} 11. h3 {[%emt 0:00:30]} Bh5 {[%emt 0:00:00]} 12. Rfe1 {[%emt 0:02:30]} O-O {[%emt 0:01:00]} 13. Nh4 {[%emt 0:12:30]} Bxe2 {[%emt 0:02:30]} 14. Qxe2 {[%emt 0:02:30]} Bh2+ {[%emt 0:02:30]} 15. Kh1 {[%emt 0:02:30]} Bf4 {[%emt 0:00:30]} 16. Bxf4 {[%emt 0:00:00]} Qxf4 {[%emt 0:00:30]} 17. Nf3 {[%emt 0:00:00]} Nd5 {[%emt 0:00:30]} 18. Nxd5 {[%emt 0:02:30]} cxd5 {[%emt 0:02:30]} 19. Qe3 {[%emt 0:05:30]} Qxe3 {[%emt 0:00:30]} 20. Rxe3 {[%emt 0:00:30]} Rac8 {[%emt 0:00:00]} 21. c3 {[%emt 0:01:30]} Rc6 {[%emt 0:00:00]} 22. Ne5 {[%emt 0:00:30]} Nxe5 {[%emt 0:00:30]} 23. Rxe5 {[%emt 0:00:30]} b5 {[%emt 0:00:00]} 24. f4 {[%emt 0:00:30]} g6 {[%emt 0:00:00]} 25. g4 {[%emt 0:02:30]} Kg7 {[%emt 0:04:30]} 26. Re2 {[%emt 0:15:30]} Rb8 {[%emt 0:00:30]} 27. f5 {[%emt 0:00:30]} exf5 {[%emt 0:00:30]} 28. gxf5 {[%emt 0:00:30]} b4 {[%emt 0:00:30]} 29. cxb4 {[%emt 0:03:30]} Rxb4 {[%emt 0:01:30]} 30. fxg6 {[%emt 0:00:30]} hxg6 {[%emt 0:00:00]} 31. b3 {[%emt 0:01:30]} Rc3 {[%emt 0:04:00]} 32. Kg2 {[%emt 0:00:30]} a5 {[%emt 0:00:30]} 33. Rdd2 {[%emt 0:01:30]} a4 {[%emt 0:00:30]} 34. bxa4 {[%emt 0:00:30]} Rxa4 {[%emt 0:00:30]} 35. Re7 {[%emt 0:00:30]} Kf8 {[%emt 0:01:30]} 36. Re5 {[%emt 0:03:30]} Ra5 {[%emt 0:00:00]} 37. h4 {[%emt 0:02:30]} Rca3 {[%emt 0:00:00]} 38. Ree2 {[%emt 0:00:30]} Kg7 {[%emt 0:00:30]} 39. Rf2 {[%emt 0:01:30]} f6 {[%emt 0:01:30]} 40. Rc2 {[%emt 0:00:30]} f5 {[%emt 0:03:30]} 41. h5 {[%emt 0:02:30]} Kh6 {[%emt 0:03:30]} 42. hxg6 {[%emt 0:00:30]} Kxg6 {[%emt 0:00:30]} 43. Rce2 {[%emt 0:01:30]} Rd3 {[%emt 0:04:30]} 44. Re5 {[%emt 0:03:30]} Rxd4 {[%emt 0:00:30]} 45. Rexf5 {[%emt 0:00:30]} Rxa2 {[%emt 0:00:00]} 46. Rf6+ {[%emt 0:00:30]} Kg5 {[%emt 0:00:00]} 47. Rf8 {[%emt 0:02:30]} Rxf2+ {[%emt 0:00:30]} 48. Rxf2 {[%emt 0:00:00]} Rg4+ {[%emt 0:00:30]} 49. Kf1 {[%emt 0:01:00]} Re4 {[%emt 0:00:30]} 50. Rf8 {[%emt 0:01:30]} d4 {[%emt 0:00:30]} 51. Kf2 {[%emt 0:00:00]} Re5 {[%emt 0:01:30]} 52. Rd8 {[%emt 0:01:00]} Re4 {[%emt 0:00:00]} 53. Rf8 {[%emt 0:00:30]} Rf4+ {[%emt 0:00:00]} 54. Rxf4 {[%emt 0:00:30]} Kxf4 {[%emt 0:00:00]} 55. Ke2 {[%emt 0:00:30]} Ke4 {[%emt 0:00:00]} 56. Kd2 {[%emt 0:00:00]} d3 {[%emt 0:00:00]} 57. Kd1 {[%emt 0:01:00]} Kd4 {[%emt 0:00:00]} 58. Kd2 {[%emt 0:00:30]} Kc4 {[%emt 0:00:30]} 59. Kd1 {[%emt 0:00:00]} Kd5 {[%emt 0:00:00]} 60. Ke1 {[%emt 0:00:00]} Ke5 {[%emt 0:00:00]} 61. Kd1 {[%emt 0:00:30]} Ke4 {[%emt 0:00:30]} 62. Kd2 {[%emt 0:00:00]} Kd4 {[%emt 0:00:00]} 63. Kd1 {[%emt 0:00:00]} d2 {[%emt 0:00:00]} 64. Kxd2 {[%emt 0:00:00]} Ke5 {[%emt 0:00:30]} 1/2-1/2

[Event "26th Troya Open 2018"]
[Site "Canakkale"]
[Date "2018.08.11"]
[Round "9.20"]
[White "Ulupinar, Furkan"]
[Black "Kecili, Mustafa Firat"]
[Result "1-0"]
[ECO "E81"]
[WhiteElo "1412"]
[BlackElo "1713"]
[Annotator "NA"]
[PlyCount "77"]
[EventDate "2018.08.06"]
[EventType "swiss"]
[EventCountry "TUR"]
[SourceTitle "playchess.com"]
[Source "ChessBase"]
[SourceQuality "1"]
[TimeControl "5400+30"]

1. d4 {[%emt 0:00:30]} Nf6 {[%emt 0:00:30]} 2. c4 {[%emt 0:00:30]} g6 {[%emt 0:00:30]} 3. Nc3 {[%emt 0:00:30]} Bg7 {[%emt 0:00:30]} 4. e4 {[%emt 0:00:00]} d6 {[%emt 0:00:00]} 5. f3 {[%emt 0:00:00]} O-O {[%emt 0:00:00]} 6. Be3 {[%emt 0:00:00]} c5 {[%emt 0:02:30]} 7. dxc5 {[%emt 0:02:00]} dxc5 {[%emt 0:01:30]} 8. Qxd8 {[%emt 0:01:30]} Rxd8 {[%emt 0:00:30]} 9. Bxc5 {[%emt 0:00:00]} Nc6 {[%emt 0:00:30]} 10. Nge2 {[%emt 0:06:00]} Nd7 {[%emt 0:01:30]} 11. Be3 {[%emt 0:03:30]} Nde5 {[%emt 0:04:30]} 12. Nf4 {[%emt 0:01:30]} Nb4 {[%emt 0:04:30]} 13. Rd1 {[%emt 0:05:30]} Nc2+ {[%emt 0:03:30]} 14. Kf2 {[%emt 0:00:30]} Rxd1 {[%emt 0:04:30]} 15. Nxd1 {[%emt 0:00:30]} Nxe3 {[%emt 0:07:30]} 16. Nxe3 {[%emt 0:02:30]} Nc6 {[%emt 0:01:30]} 17. b3 {[%emt 0:04:30]} a5 {[%emt 0:02:30]} 18. Nd3 {[%emt 0:08:30]} Bd4 {[%emt 0:00:30]} 19. Ke2 {[%emt 0:01:30]} a4 {[%emt 0:13:30]} 20. b4 {[%emt 0:02:30]} Be6 {[%emt 0:05:30]} 21. Nd5 {[%emt 0:01:30]} Bxd5 {[%emt 0:04:30]} 22. exd5 {[%emt 0:01:30]} Ne5 {[%emt 0:01:30]} 23. Nxe5 {[%emt 0:00:30]} Bxe5 {[%emt 0:00:30]} 24. Kd3 {[%emt 0:01:30]} a3 {[%emt 0:00:30]} 25. c5 {[%emt 0:05:30]} b6 {[%emt 0:03:30]} 26. g3 {[%emt 0:06:30]} Ra4 {[%emt 0:01:30]} 27. f4 {[%emt 0:03:30]} Bc7 {[%emt 0:01:30]} 28. Kc3 {[%emt 0:04:30]} bxc5 {[%emt 0:01:30]} 29. bxc5 {[%emt 0:00:30]} Re4 {[%emt 0:02:30]} 30. Bc4 {[%emt 0:04:30]} Re3+ {[%emt 0:01:30]} 31. Kb4 {[%emt 0:00:30]} g5 {[%emt 0:01:30]} 32. fxg5 {[%emt 0:01:30]} Kg7 {[%emt 0:01:30]} 33. Rd1 {[%emt 0:00:30]} Kg6 {[%emt 0:00:30]} 34. Rf1 {[%emt 0:06:30]} Be5 {[%emt 0:02:30]} 35. Kb5 {[%emt 0:02:30]} Kxg5 {[%emt 0:01:30]} 36. Rxf7 {[%emt 0:00:30]} Bf6 {[%emt 0:00:30]} 37. c6 {[%emt 0:01:30] [%clk 0:22]} Re1 {[%emt 0:05:30]} 38. c7 {[%emt 0:01:30]} Rb1+ {[%emt 0:00:30]} 39. Kc5 {[%emt 0:00:00]} 1-0

[Event "26th Troya Open 2018"]
[Site "Canakkale"]
[Date "2018.08.11"]
[Round "9.21"]
[White "Ozen, Ali"]
[Black "Daloglu, Berkay"]
[Result "1-0"]
[ECO "B80"]
[WhiteElo "1575"]
[BlackElo "1635"]
[Annotator "NA"]
[PlyCount "115"]
[EventDate "2018.08.06"]
[EventType "swiss"]
[EventCountry "TUR"]
[SourceTitle "playchess.com"]
[Source "ChessBase"]
[SourceQuality "1"]
[TimeControl "5400+30"]

1. e4 {[%emt 0:00:30]} c5 {[%emt 0:07:30]} 2. Nf3 {[%emt 0:00:00]} e6 {[%emt 0:00:30]} 3. d4 {[%emt 0:00:00]} cxd4 {[%emt 0:00:30]} 4. Nxd4 {[%emt 0:00:00]} a6 {[%emt 0:00:00]} 5. g3 {[%emt 0:01:00]} Qc7 {[%emt 0:00:00]} 6. Bg2 {[%emt 0:00:30]} Nc6 {[%emt 0:00:30]} 7. Nc3 {[%emt 0:02:30]} Nf6 {[%emt 0:00:30]} 8. Nb3 {[%emt 0:03:30]} Be7 {[%emt 0:05:30]} 9. a4 {[%emt 0:01:30]} b6 {[%emt 0:00:30]} 10. O-O {[%emt 0:00:30]} Bb7 {[%emt 0:00:30]} 11. f4 {[%emt 0:10:30]} d6 {[%emt 0:01:30]} 12. Be3 {[%emt 0:07:30]} O-O {[%emt 0:04:30]} 13. Kh1 {[%emt 0:11:30]} g6 {[%emt 0:11:30]} 14. g4 {[%emt 0:06:30]} Nd7 {[%emt 0:01:30]} 15. Qe2 {[%emt 0:18:30]} Rad8 {[%emt 0:10:30]} 16. f5 {[%emt 0:04:30]} Nce5 {[%emt 0:05:30]} 17. Bh6 {[%emt 0:08:30]} Rfe8 {[%emt 0:00:30]} 18. fxe6 {[%emt 0:00:30]} fxe6 {[%emt 0:00:00]} 19. Nd4 {[%emt 0:02:04]} Bf6 {[%emt 0:02:00] 6} 20. g5 {[%emt 0:07:46]} Bg7 {[%emt 0:06:30] 0} 21. Bxg7 {[%emt 0:01:00]} Kxg7 {[%emt 0:00:30] 0} 22. Qf2 {[%emt 0:02:39]} Re7 {[%emt 0:02:30] 1} 23. Qh4 {[%emt 0:03:39]} Kg8 {[%emt 0:01:30] ]} 24. Qh3 {[%emt 0:05:09]} Rde8 {[%emt 0:01:30] 3} 25. Rf2 {[%emt 0:00:54]} Qc5 {[%emt 0:00:30] 1} 26. Rd2 {[%emt 0:00:39]} Nc4 {[%emt 0:00:30] 0} 27. Nb3 {[%emt 0:01:07] [%clk 0:00.33]} Qxg5 {[%emt 0:07:30]} 28. Rd4 {[%emt 0:00:21]} Nde5 {[%emt 0:09:30]} 29. Re1 {[%emt 0:01:07]} Rf8 {[%emt 0:00:30]} 30. Qg3 {[%emt 0:00:30]} Qxg3 {[%emt 0:00:30]} 31. hxg3 {[%emt 0:00:30]} Rf2 {[%emt 0:03:06]} 32. Re2 {[%emt 0:00:01]} Ref7 {[%emt 0:02:53]} 33. Kg1 {[%emt 0:00:23]} Rxe2 {[%emt 0:00:58]} 34. Nxe2 {[%emt 0:00:04]} g5 {[%emt 0:02:38]} 35. Nd2 {[%emt 0:00:16]} Nxd2 {[%emt 0:02:03]} 36. Rxd2 {[%emt 0:00:02]} Rd7 {[%emt 0:00:31]} 37. b3 {[%emt 0:01:17]} h5 {[%emt 0:01:07]} 38. Nd4 {[%emt 0:00:28]} Kf7 {[%emt 0:01:16]} 39. Nf3 {[%emt 0:01:02]} Nxf3+ {[%emt 0:00:20]} 40. Bxf3 {[%emt 0:00:10]} g4 {[%emt 0:00:09]} 41. Bg2 {[%emt 0:00:13]} Kf6 {[%emt 0:01:14]} 42. Kf2 {[%emt 0:00:01]} Ke5 {[%emt 0:00:14]} 43. Ke3 {[%emt 0:00:23]} Rc7 {[%emt 0:01:35]} 44. c4 {[%emt 0:01:32]} Rf7 {[%emt 0:01:28]} 45. Rd1 {[%emt 0:00:20]} Bc6 {[%emt 0:00:35]} 46. Rh1 {[%emt 0:00:27]} Rh7 {[%emt 0:01:02]} 47. Rf1 {[%emt 0:00:03]} b5 {[%emt 0:00:57]} 48. cxb5 {[%emt 0:01:14]} axb5 {[%emt 0:00:01]} 49. Rc1 {[%emt 0:00:35]} Be8 {[%emt 0:01:03]} 50. Rc8 {[%emt 0:00:32]} Bg6 {[%emt 0:00:30]} 51. Rg8 {[%emt 0:00:30]} Kf6 {[%emt 0:00:30]} 52. a5 {[%emt 0:00:30]} b4 {[%emt 0:00:30]} 53. a6 {[%emt 0:00:28]} Ra7 {[%emt 0:03:48]} 54. Bf1 {[%emt 0:00:13]} Bf7 {[%emt 0:00:36]} 55. Rb8 {[%emt 0:00:05]} e5 {[%emt 0:00:21]} 56. Rxb4 {[%emt 0:00:30]} d5 {[%emt 0:00:30]} 57. Rb6+ {[%emt 0:00:30]} Ke7 {[%emt 0:00:30]} 58. Rb7+ {[%emt 0:00:00]} 1-0